bitfinex/quotes_ETHUSD_20230117
["timestamp","ask_amount","ask_price","bid_price","bid_amount"]
[1673994937767,0.0169638,1576.7,1576.5,11.51737228]
[1673994938143,0.0169638,1576.7,1576.5,17.86053228]
[1673994942884,0.0169638,1576.7,1576.6,20.52828]
[1673994943092,0.0169638,1576.7,1576.6,20.76428]
[1673994943762,0.0169638,1576.7,1576.6,26.4801533]
[1673994944151,0.0169638,1576.7,1576.6,29.4801533]
[1673994944340,0.0169638,1576.7,1576.6,30.11689503]
[1673994946284,0.03697408,1577.1,1576.7,1.5]
[1673994946458,0.03697408,1577.1,1576.8,28.71410407]
[1673994946670,0.03697408,1577.1,1576.9,10.48803448]
[1673994946867,0.03697408,1577.1,1577.0,25.5946]
[1673994947076,0.03697408,1577.1,1577.0,28.6006]
[1673994947654,0.03697408,1577.1,1577.0,31.71722407]
[1673994948121,0.03697408,1577.1,1577.0,32.3539658]
[1673994948332,0.03697408,1577.1,1577.0,35.88250342]
[1673994949173,0.03697408,1577.2,1577.0,29.00734173]
[1673994949390,0.03697408,1577.2,1577.1,3.0]
[1673994949714,0.03697408,1577.2,1577.1,22.02225]
[1673994949966,0.03697408,1577.2,1577.1,22.02825]
[1673994950699,0.03697408,1577.2,1577.1,22.25825]
[1673994951950,0.03697408,1577.2,1577.1,28.24081407]
[1673994952280,0.03697408,1577.2,1577.1,28.72767953]
[1673994960548,0.03697408,1577.2,1577.1,40.73737953]
[1673994970908,0.03697408,1577.2,1577.1,34.52481546]
[1673994972623,0.03697408,1577.2,1577.1,34.75481546]
[1673994972849,0.03697408,1577.2,1577.1,14.32804575]
[1673994973071,0.03697408,1577.2,1577.1,2.31834575]
[1673994973302,0.03697408,1577.2,1577.1,0.48686546]
[1673994974569,0.03697408,1577.2,1577.1,0.71686546]
[1673994974806,0.03697408,1577.2,1577.1,7.05761546]
[1673994974937,0.03697408,1577.2,1577.1,7.06361546]
[1673994975481,0.03697408,1577.2,1577.1,0.72286546]
[1673994975690,0.03697408,1577.2,1577.1,7.05761546]
[1673994975887,0.03697408,1577.2,1577.1,7.06361546]
[1673994977367,0.03697408,1577.2,1577.1,13.40436546]
[1673994981147,0.767389,1577.2,1577.1,0.72286546]
[1673994981351,0.10673672,1577.2,1577.1,0.71686546]
[1673994981777,0.767389,1577.2,1577.1,0.71686546]
[1673994981990,0.10673672,1577.2,1577.1,0.71686546]
[1673994982527,8.20897138,1577.2,1577.1,0.71686546]
[1673994982779,15.62928395,1577.2,1577.1,0.71686546]
[1673994983083,14.96863167,1577.2,1577.1,0.71686546]
[1673994984634,14.96863167,1577.2,1577.1,0.48686546]
[1673994984635,22.63093111,1577.2,1577.1,0.48686546]
[1673994984848,21.30897167,1577.2,1577.1,0.48686546]
[1673994985081,0.67015091,1577.0,1576.8,0.066]
[1673994985291,7.67139233,1577.0,1576.9,0.23]
[1673994985526,8.86876328,1577.0,1576.8,0.23]
[1673994985659,7.76739233,1577.0,1576.8,0.23]
[1673994986817,7.10730091,1577.0,1576.8,0.23]
[1673994987766,7.76739233,1577.0,1576.8,0.23]
[1673994987969,0.77673923,1576.9,1576.8,0.23]
[1673994992889,0.77673923,1576.9,1576.7,12.8086]
[1673994993198,0.77673923,1576.9,1576.7,0.006]
[1673994993371,0.77673923,1576.9,1576.6,19.03404]
[1673994993804,7.11831923,1576.9,1576.6,6.34868]
[1673994994147,0.71183192,1576.8,1576.6,6.34868]
[1673994995137,3.82845599,1576.8,1576.6,0.006]
[1673994995387,3.82845599,1576.8,1576.4,6.34351]
[1673994995388,22.85433599,1576.8,1576.4,6.34351]
[1673994995588,2.2854336,1576.7,1576.4,0.006]
[1673994995797,6.34276,1576.6,1576.3,6.52224045]
[1673994995988,6.43876,1576.6,1576.3,6.52224045]
[1673994997403,12.78152,1576.6,1576.3,0.17849045]
[1673994997620,12.78152,1576.6,1576.4,0.23]
[1673994997894,1.278152,1576.5,1576.4,0.23]
[1673994999167,7.621312,1576.5,1576.3,0.17849045]
[1673994999383,14.060472,1576.5,1576.3,0.17249045]
[1673995002134,0.096,1576.5,1576.3,6.51640045]
[1673995002347,0.096,1576.6,1576.3,6.52240045]
[1673995002624,8.7238536,1576.7,1576.4,6.57347]
[1673995002840,8.7238536,1576.7,1576.4,6.57947]
[1673995006343,15.0664536,1576.7,1576.4,0.236]
[1673995006529,1.50664536,1576.6,1576.4,0.23]
[1673995007142,2.3814336,1576.7,1576.4,6.57355]
[1673995007362,15.02448192,1576.8,1576.4,19.26667]
[1673995008926,0.096,1576.8,1576.4,19.26667]
[1673995009196,6.43764,1576.9,1576.4,19.26667]
[1673995009887,0.096,1576.9,1576.5,3.11662407]
[1673995010100,0.76615091,1577.0,1576.7,12.68472]
[1673995010293,0.67015091,1577.0,1576.7,12.69072]
[1673995010507,0.67015091,1577.0,1576.8,6.57193]
[1673995010755,0.67015091,1577.0,1576.8,6.57793]
[1673995010969,0.67015091,1577.0,1576.8,12.91988]
[1673995011349,0.67015091,1577.0,1576.8,6.57793]
[1673995014146,0.67015091,1577.0,1576.8,0.236]
[1673995014290,14.687649,1577.0,1576.8,0.23]
[1673995014499,14.783649,1577.0,1576.6,6.4084]
[1673995014707,14.783649,1577.0,1576.6,6.3484]
[1673995015350,21.78490042,1577.0,1576.6,6.3484]
[1673995015540,2.17849004,1576.9,1576.6,0.006]
[1673995015773,14.86206004,1576.9,1576.6,3.0]
[1673995016011,14.95806004,1576.9,1576.6,3.0]
[1673995017065,21.29997004,1576.9,1576.6,3.0]
[1673995018189,21.29997004,1576.9,1576.5,12.3157]
[1673995018403,14.814187,1576.8,1576.5,12.2557]
[1673995018763,21.252407,1576.8,1576.5,12.2557]
[1673995020540,21.91249842,1576.8,1576.5,12.2557]
[1673995022443,22.90263555,1576.8,1576.5,12.2557]
[1673995024416,1.7616202,1576.7,1576.5,12.2557]
[1673995024642,16.84702663,1576.7,1576.5,12.2557]
[1673995024832,15.84149785,1576.7,1576.5,12.2557]
[1673995026181,15.18140643,1576.7,1576.5,12.2557]
[1673995029043,15.84149785,1576.7,1576.5,12.2557]
[1673995029257,22.18411785,1576.7,1576.5,12.2557]
[1673995029463,8.56117178,1576.6,1576.5,12.2557]
[1673995029704,8.65717178,1576.6,1576.5,12.2557]
[1673995035380,8.65717178,1576.6,1576.5,11.08071124]
[1673995035884,8.65717178,1576.6,1576.5,0.006]
[1673995036092,8.65717178,1576.6,1576.3,9.52229045]
[1673995036898,14.99993178,1576.6,1576.3,3.17849045]
[1673995037215,14.99993178,1576.6,1576.3,9.51645045]
[1673995037423,8.65717178,1576.6,1576.3,9.52245045]
[1673995038054,0.86571718,1576.5,1576.3,3.17849045]
[1673995038260,7.20890718,1576.5,1576.3,3.17249045]
[1673995038535,7.30490718,1576.5,1576.3,3.17249045]
[1673995038703,7.30490718,1576.5,1576.3,0.17249045]
[1673995038910,0.73049072,1576.4,1576.3,0.17249045]
[1673995039163,0.73049072,1576.4,1576.3,0.40249045]
[1673995042316,0.73049072,1576.4,1576.3,0.17249045]
[1673995043657,0.73049072,1576.4,1576.3,0.40249045]
[1673995044063,22.87779479,1576.4,1576.3,0.17249045]
[1673995044413,22.97379479,1576.4,1576.3,0.17249045]
[1673995047672,0.39848826,1576.2,1575.7,0.18304483]
[1673995047883,3.11662407,1575.9,1575.7,0.18304483]
[1673995048192,19.03794,1575.8,1575.7,0.18304483]
[1673995048352,22.25056407,1575.8,1575.7,0.18304483]
[1673995048810,15.90458407,1575.8,1575.7,0.18304483]
[1673995048978,6.44198,1575.8,1575.7,0.18304483]
[1673995049189,2.194354,1575.8,1575.7,0.18304483]
[1673995049425,5.21497807,1575.8,1575.7,0.18304483]
[1673995049742,11.65695807,1575.8,1575.7,0.18304483]
[1673995050424,11.65695807,1575.8,1575.7,0.51754381]
[1673995053223,21.9546998,1575.8,1575.6,0.18049714]
[1673995053453,21.9546998,1575.8,1575.6,9.714e-05]
[1673995053454,21.00485405,1575.7,1575.6,9.714e-05]
[1673995053643,21.10085405,1575.7,1575.6,9.714e-05]
[1673995054283,27.76185405,1575.7,1575.5,0.00059428]
[1673995054508,11.27762407,1575.6,1575.3,0.18692284]
[1673995054718,19.04277,1575.4,1575.3,0.18692284]
[1673995054890,12.74225348,1575.4,1575.3,0.18692284]
[1673995055097,12.74225348,1575.4,1575.0,0.20170662]
[1673995055098,1.5,1575.3,1575.0,0.20170662]
[1673995055308,15.81342407,1575.2,1575.0,0.20170662]
[1673995055568,6.3496,1574.9,1574.8,0.20745725]
[1673995055742,15.91182407,1574.9,1574.8,0.20745725]
[1673995055955,22.57282407,1574.9,1574.6,0.0121628]
[1673995056151,5.37390648,1574.8,1574.6,0.0121628]
[1673995056370,3.11662407,1574.7,1574.6,0.0121628]
[1673995056815,9.46703407,1574.7,1574.6,0.0121628]
[1673995057047,9.56303407,1574.7,1574.6,0.0121628]
[1673995057991,3.21262407,1574.7,1574.6,0.0121628]
[1673995058167,3.11662407,1574.7,1574.6,0.0121628]
[1673995058473,0.096,1574.9,1574.6,0.2421628]
[1673995058691,0.26058687,1575.0,1574.6,0.2421628]
[1673995058882,0.26058687,1575.0,1574.6,7.86751635]
[1673995058883,0.16458687,1575.0,1574.6,7.86751635]
[1673995059233,0.16458687,1575.0,1574.7,3.0]
[1673995059448,0.16458687,1575.0,1574.8,0.23]
[1673995060289,0.16458687,1575.0,1574.8,6.58001]
[1673995060502,0.16458687,1575.0,1574.8,6.58201]
[1673995060835,0.16458687,1575.0,1574.9,2.158201]
[1673995060989,0.16458687,1575.0,1574.9,14.053701]
[1673995061200,0.16458687,1575.0,1574.9,17.055701]
[1673995061424,0.16458687,1575.0,1574.9,23.405301]
[1673995061670,0.16458687,1575.0,1574.9,29.754901]
[1673995061829,0.16458687,1575.0,1574.9,32.87152507]
[1673995062735,7.6628,1575.7,1575.2,19.04505]
[1673995062736,0.096,1575.7,1575.2,19.04505]
[1673995062881,0.07782642,1575.8,1575.4,12.6951]
[1673995063091,0.07782642,1575.8,1575.5,3.0]
[1673995063349,0.07782642,1575.8,1575.6,0.23]
[1673995064472,0.07782642,1575.8,1575.5,0.2346301]
[1673995064637,0.07782642,1575.8,1575.5,0.51832773]
[1673995064852,0.07782642,1575.8,1575.5,6.86545773]
[1673995065008,0.07782642,1575.8,1575.5,16.3312718]
[1673995065220,0.07782642,1575.8,1575.6,10.84663]
[1673995065432,0.07782642,1575.8,1575.6,10.84863]
[1673995065640,0.07782642,1575.8,1575.7,1.084863]
[1673995066685,0.07782642,1575.8,1575.7,1.314863]
[1673995066895,0.07782642,1575.8,1575.7,17.12424707]
[1673995067109,0.07782642,1575.8,1575.7,20.12624707]
[1673995067368,2.642e-05,1575.8,1575.7,20.12624707]
[1673995067546,0.39848826,1576.2,1575.7,20.12624707]
[1673995067762,0.39848826,1576.2,1575.8,14.70496878]
[1673995067951,0.39848826,1576.2,1575.8,21.05294878]
[1673995068178,0.39848826,1576.2,1576.0,6.34517]
[1673995068393,0.39848826,1576.2,1576.1,0.23]
[1673995071332,0.39848826,1576.2,1576.1,12.91954]
[1673995071590,0.39848826,1576.2,1576.1,17.85092935]
[1673995072594,0.39848826,1576.2,1576.1,20.96755342]
[1673995074176,0.39848826,1576.2,1576.1,27.31232342]
[1673995084154,0.39848826,1576.2,1576.1,24.19569935]
[1673995084531,0.39848826,1576.2,1576.1,22.26631]
[1673995085258,0.39848826,1576.2,1576.1,15.92154]
[1673995086076,0.39848826,1576.2,1576.1,25.38293407]
[1673995088930,0.39848826,1576.2,1576.1,22.26631]
[1673995090188,0.39848826,1576.2,1576.1,15.92154]
[1673995091344,0.39848826,1576.2,1576.1,9.57677]
[1673995091556,0.39848826,1576.2,1576.1,23.86722235]
[1673995091747,0.39848826,1576.2,1576.1,15.92154]
[1673995092291,0.39582819,1576.2,1576.1,3.002]
[1673995092517,0.39582819,1576.2,1576.1,9.34477]
[1673995092813,0.39582819,1576.2,1576.1,22.03631]
[1673995092973,0.39582819,1576.2,1576.1,25.15293407]
[1673995093187,0.39582819,1576.2,1576.1,28.31143983]
[1673995093883,0.39582819,1576.2,1576.1,25.42481576]
[1673995094078,0.39582819,1576.2,1576.1,22.26631]
[1673995095547,6.74019819,1576.2,1576.1,0.002]
[1673995095766,0.49182819,1576.2,1575.9,6.34739]
[1673995095971,0.39582819,1576.2,1575.9,6.34739]
[1673995096127,1.71384701,1576.2,1575.9,6.34739]
[1673995096338,1.71384701,1576.2,1575.9,19.03855]
[1673995096547,1.71384701,1576.2,1575.9,12.69297]
[1673995096799,0.39582819,1576.2,1575.9,12.69297]
[1673995097198,0.39582819,1576.2,1576.0,0.23]
[1673995098018,6.74024819,1576.2,1575.9,0.23]
[1673995098231,6.83624819,1576.2,1575.9,0.23]
[1673995098708,6.83624819,1576.2,1575.9,0.225105]
[1673995099239,6.84206561,1576.2,1575.9,0.225105]
[1673995099384,0.68420656,1576.1,1575.9,0.225105]
[1673995100540,0.40164561,1576.2,1575.9,0.225105]
[1673995101010,6.74611561,1576.2,1575.9,0.225105]
[1673995101190,6.84211561,1576.2,1575.9,0.225105]
[1673995101856,0.49764561,1576.2,1575.9,6.570625]
[1673995102020,0.40164561,1576.2,1575.9,6.572625]
[1673995102286,1.72024917,1576.2,1575.9,6.572625]
[1673995103349,1.72024917,1576.2,1575.9,12.918205]
[1673995104563,1.72024917,1576.2,1575.9,19.263785]
[1673995104768,0.40164561,1576.2,1575.9,19.263785]
[1673995106625,0.40164561,1576.2,1576.0,3.0]
[1673995106626,0.39582819,1576.2,1576.0,3.0]
[1673995106975,0.39582819,1576.2,1576.1,19.26431]
[1673995107134,0.39582819,1576.2,1576.1,22.26631]
[1673995107342,0.39582819,1576.2,1576.1,25.51173623]
[1673995107593,0.39582819,1576.2,1576.1,28.6283603]
[1673995109271,0.39582819,1576.2,1576.1,28.65593928]
[1673995111901,0.24582819,1576.2,1576.1,28.65593928]
[1673995112491,0.24582819,1576.2,1576.1,29.31821754]
[1673995112706,0.24582819,1576.2,1576.1,29.64931451]
[1673995113050,0.24582819,1576.2,1576.1,30.28605624]
[1673995113263,0.24582819,1576.2,1576.1,30.95038251]
[1673995113628,0.24582819,1576.2,1576.1,30.95038439]
[1673995114394,0.00082819,1576.2,1576.1,30.28605624]
[1673995114609,0.00082819,1576.2,1576.1,36.63082624]
[1673995115658,0.00082819,1576.2,1576.1,49.57914625]
[1673995116255,1.65256088,1576.5,1576.2,1.0]
[1673995116467,1.65256088,1576.5,1576.3,28.59250407]
[1673995116776,1.65256088,1576.5,1576.4,7.11662407]
[1673995116982,1.65256088,1576.5,1576.4,26.14930407]
[1673995118074,1.50256088,1576.5,1576.4,26.14930407]
[1673995118468,0.03748438,1576.6,1576.4,34.11102553]
[1673995118703,0.03748438,1576.6,1576.5,19.03012662]
[1673995118919,0.03748438,1576.6,1576.5,48.83860662]
[1673995119241,0.03748438,1576.6,1576.5,49.47534835]
[1673995119892,4.38e-06,1576.6,1576.5,49.47534835]
[1673995120036,4.38e-06,1576.6,1576.5,49.70534835]
[1673995121671,0.0354727,1577.0,1576.5,49.70534835]
[1673995121818,0.0354727,1577.0,1576.6,12.08715891]
[1673995122036,0.0354727,1577.0,1576.7,28.48574407]
[1673995122348,0.0354727,1577.0,1576.8,7.11662407]
[1673995122557,0.0354727,1577.0,1576.9,22.14127407]
[1673995122766,0.0354727,1577.0,1576.9,25.14327407]
[1673995123035,0.0354727,1577.0,1576.9,28.59815848]
[1673995123398,0.0354727,1577.0,1576.9,40.97195848]
[1673995123922,0.0354727,1577.0,1576.9,41.20195848]
[1673995124790,0.0354727,1577.0,1576.9,41.83870021]
[1673995124987,0.0354727,1577.0,1576.9,41.20195848]
[1673995126271,0.0354727,1577.0,1576.9,41.1991688]
[1673995127028,0.0354727,1577.0,1576.9,41.83591053]
[1673995128146,0.0354727,1577.0,1576.9,41.1991688]
[1673995128985,0.03697408,1577.2,1576.9,41.83591053]
[1673995129253,0.03697408,1577.2,1577.0,7.69759837]
[1673995129471,0.03697408,1577.2,1577.1,28.47962407]
[1673995129619,0.03697408,1577.2,1577.1,31.48162407]
[1673995130403,0.03697408,1577.2,1577.1,32.1183658]
[1673995130981,0.03697408,1577.2,1577.1,31.48162407]
[1673995131311,0.03697408,1577.2,1577.1,42.34028391]
[1673995132297,0.03697408,1577.2,1577.1,42.36528388]
[1673995139442,0.03697408,1577.2,1577.1,48.70603388]
[1673995142211,0.08770935,1577.4,1577.2,1.0]
[1673995142382,0.08770935,1577.4,1577.3,35.04632407]
[1673995142589,0.08770935,1577.4,1577.3,38.95295648]
[1673995143016,0.08770935,1577.4,1577.3,53.62585084]
[1673995149303,0.08770935,1577.4,1577.3,47.05591084]
[1673995149516,0.08770935,1577.4,1577.3,43.15127843]
[1673995150721,0.09352677,1577.4,1577.3,6.34194]
[1673995151248,0.09352677,1577.4,1577.3,19.02182]
[1673995151611,0.09352677,1577.4,1577.3,22.13844407]
[1673995151612,0.08770935,1577.4,1577.3,22.13844407]
[1673995152032,0.08770935,1577.4,1577.3,25.13844407]
[1673995152366,0.08770935,1577.4,1577.3,25.36844407]
[1673995152573,0.08770935,1577.4,1577.3,28.54570548]
[1673995153829,0.08770935,1577.4,1577.3,40.28140548]
[1673995154266,0.08770935,1577.4,1577.3,37.10414407]
[1673995160721,0.04404833,1577.5,1577.3,43.76514407]
[1673995160934,0.04404833,1577.5,1577.4,7.11662407]
[1673995161106,0.04404833,1577.5,1577.4,26.7739858]
[1673995161774,0.04404833,1577.5,1577.4,34.5348858]
[1673995161987,0.04404833,1577.5,1577.4,41.08363802]
[1673995163136,0.04404833,1577.5,1577.4,41.31363802]
[1673995166812,0.04404833,1577.5,1577.4,41.97761775]
[1673995167009,0.04404833,1577.5,1577.4,41.31363802]
[1673995167224,0.04404833,1577.5,1577.4,41.97761775]
[1673995167548,0.04404833,1577.5,1577.4,41.31363802]
[1673995168339,0.04404833,1577.5,1577.4,41.97761775]
[1673995168653,0.04404833,1577.5,1577.4,41.31363802]
[1673995169193,0.04741027,1577.7,1577.5,11.7923638]
[1673995169392,0.04741027,1577.8,1577.7,1.0]
[1673995169722,0.04741027,1577.8,1577.7,29.69998407]
[1673995169982,0.04741027,1577.8,1577.7,32.70198407]
[1673995170147,0.04741027,1577.8,1577.7,39.04032407]
[1673995170354,0.04741027,1577.8,1577.7,42.23777806]
[1673995170563,0.03445442,1577.9,1577.7,42.23777806]
[1673995170775,0.03445442,1577.9,1577.8,6.34662407]
[1673995171123,0.03445442,1577.9,1577.8,33.03961407]
[1673995171337,4.42e-06,1577.9,1577.8,33.03961407]
[1673995171502,4.42e-06,1577.9,1577.8,38.00106305]
[1673995172790,4.42e-06,1577.9,1577.8,27.32386305]
[1673995174287,4.42e-06,1577.9,1577.8,30.32386305]
[1673995177220,1.05226333,1578.3,1578.0,25.34852]
[1673995177377,1.05226333,1578.3,1578.1,25.12681407]
[1673995177600,1.05226333,1578.3,1578.1,25.12881407]
[1673995177812,1.05226333,1578.3,1578.1,26.68967138]
[1673995179301,1.05226333,1578.3,1578.1,26.91967138]
[1673995182022,0.05656333,1578.3,1578.1,26.91967138]
[1673995195988,0.00056333,1578.3,1578.2,0.067]
[1673995196364,0.00056333,1578.3,1578.2,28.85361407]
[1673995196533,0.00056333,1578.3,1578.2,49.40237237]
[1673995196899,0.00056333,1578.3,1578.2,49.42539349]
[1673995197110,0.00056333,1578.3,1578.2,57.05399349]
[1673995197561,0.00056333,1578.3,1578.2,50.39299349]
[1673995197759,0.00056333,1578.3,1578.2,48.78739899]
[1673995197970,0.00056333,1578.3,1578.2,44.65603519]
[1673995198197,0.00056333,1578.3,1578.2,44.88603519]
[1673995204124,0.00056333,1578.3,1578.2,44.86301407]
[1673995204495,0.00056333,1578.3,1578.2,37.23441407]
[1673995219734,0.00056333,1578.3,1578.2,43.57074407]
[1673995219958,0.0076239,1578.5,1578.4,25.34208]
[1673995220202,0.0076239,1578.5,1578.4,31.68870407]
[1673995232594,0.0076239,1578.5,1578.3,0.066]
[1673995232830,0.0076239,1578.5,1578.3,22.12387407]
[1673995234376,0.6671385,1578.5,1578.3,15.78800407]
[1673995234595,8.38601536,1578.5,1578.2,0.066]
[1673995234782,8.38601536,1578.5,1578.1,0.002]
[1673995234783,1.75985485,1578.4,1578.1,0.002]
[1673995234996,8.09538485,1578.4,1578.0,12.6758]
[1673995235187,7.0910446,1578.4,1578.0,6.33888]
[1673995235413,0.70910446,1578.3,1578.0,6.33888]
[1673995236156,0.71492188,1578.3,1578.0,6.33888]
[1673995236375,1.37443648,1578.3,1578.0,6.33888]
[1673995237181,1.37443648,1578.3,1578.1,0.23]
[1673995237400,7.71042648,1578.3,1578.0,0.23]
[1673995237607,0.77104265,1578.2,1578.0,0.23]
[1673995241073,13.44377265,1578.2,1577.9,0.006]
[1673995241291,13.53977265,1578.2,1577.8,9.33986]
[1673995241957,0.86704265,1578.2,1577.8,22.13234407]
[1673995242177,0.77104265,1578.2,1577.8,22.13234407]
[1673995242348,0.07710427,1578.1,1577.8,22.13234407]
[1673995242558,0.07710427,1578.1,1577.9,0.23]
[1673995242755,0.07710427,1578.1,1577.9,6.56738]
[1673995242976,0.07710427,1578.1,1577.9,6.56938]
[1673995244505,0.096,1578.2,1577.9,22.36106407]
[1673995244651,9.40721906,1578.3,1577.9,22.36106407]
[1673995244652,9.50321906,1578.3,1577.9,22.36106407]
[1673995245007,8.84060218,1578.3,1577.9,22.36106407]
[1673995245382,27.84846218,1578.3,1577.9,0.232]
[1673995245627,2.78484622,1578.2,1577.9,0.23]
[1673995245846,6.33673,1578.1,1577.9,0.23]
[1673995246055,12.76946,1578.1,1577.8,0.006]
[1673995246233,12.76946,1578.1,1577.7,12.67829]
[1673995246993,12.77527742,1578.1,1577.7,12.67829]
[1673995247200,1.27752774,1578.0,1577.7,6.34011]
[1673995247393,12.67506,1577.9,1577.7,0.002]
[1673995247604,12.77106,1577.9,1577.5,12.78757405]
[1673995247957,12.77106,1577.9,1577.5,15.90419812]
[1673995247958,12.77687742,1577.9,1577.5,15.90419812]
[1673995248266,7.61584774,1577.8,1577.5,0.10957405]
[1673995248479,14.05000774,1577.8,1577.5,0.10757405]
[1673995249109,20.38816774,1577.8,1577.5,0.10757405]
[1673995249640,14.05000774,1577.8,1577.5,0.10757405]
[1673995250314,1.37368774,1577.8,1577.6,0.23]
[1673995250685,0.13736877,1577.7,1577.6,0.23]
[1673995251154,6.43353,1577.9,1577.6,0.23]
[1673995253101,12.77127,1577.9,1577.6,0.23]
[1673995254097,19.10901,1577.9,1577.6,0.23]
[1673995254303,19.10901,1577.9,1577.5,0.10757405]
[1673995256792,22.22563407,1577.9,1577.5,0.10757405]
[1673995256983,19.01502,1577.7,1577.5,0.10757405]
[1673995257306,19.11102,1577.7,1577.5,0.10757405]
[1673995257825,19.11683742,1577.7,1577.5,0.10757405]
[1673995258211,1.0,1577.6,1577.4,0.10757067]
[1673995258405,19.01742,1577.5,1577.4,0.10757067]
[1673995258623,21.12097942,1577.5,1577.4,0.10757067]
[1673995260402,21.12097942,1577.5,1577.3,0.11534052]
[1673995265886,14.78183942,1577.5,1577.3,0.11534052]
[1673995266103,0.8663,1577.4,1577.3,0.11534052]
[1673995266940,0.8663,1577.4,1577.3,0.34534052]
[1673995268876,0.8663,1577.4,1577.3,0.3417089]
[1673995272078,0.80344742,1577.5,1577.3,0.3417089]
[1673995273723,0.79763,1577.5,1577.4,12.90908]
[1673995273939,0.79763,1577.5,1577.4,15.1588123]
[1673995275101,0.79763,1577.5,1577.4,21.4983523]
[1673995277335,0.875,1577.7,1577.4,21.4983523]
[1673995277501,0.875,1577.7,1577.4,19.25062]
[1673995277923,0.875,1577.7,1577.4,22.36724407]
[1673995280342,0.875,1577.7,1577.5,0.44642752]
[1673995280531,0.875,1577.7,1577.6,0.23]
[1673995283115,0.875,1577.7,1577.5,13.13035752]
[1673995283265,0.875,1577.7,1577.5,6.78735752]
[1673995284334,1.60647574,1577.7,1577.5,6.78735752]
[1673995285319,1.60647574,1577.7,1577.6,0.23]
[1673995285685,0.875,1577.7,1577.6,0.23]
[1673995286139,0.875,1577.7,1577.6,12.90748]
[1673995286474,0.875,1577.7,1577.6,19.24822]
[1673995287389,0.875,1577.7,1577.6,22.36484407]
[1673995288524,0.96308,1577.9,1577.6,22.36484407]
[1673995288735,0.96308,1577.9,1577.7,2.23648441]
[1673995288989,0.96308,1577.9,1577.8,6.56785]
[1673995289202,0.96308,1577.9,1577.8,6.56985]
[1673995291903,0.96308,1577.9,1577.8,12.90778]
[1673995292797,0.96308,1577.9,1577.8,19.24571]
[1673995294477,1.01250341,1578.0,1577.8,19.24571]
[1673995298984,1.01250341,1578.0,1577.8,23.008001]
[1673995299519,1.01250341,1578.0,1577.8,19.24571]
[1673995299741,0.86281742,1578.1,1577.8,19.24571]
[1673995304838,0.857,1578.1,1577.8,22.36233407]
[1673995306947,0.857,1578.1,1577.9,3.11662407]
[1673995307161,0.857,1578.1,1578.0,6.56713]
[1673995307372,0.857,1578.1,1578.0,6.56913]
[1673995307845,0.857,1578.1,1578.0,6.56520895]
[1673995308372,0.857,1578.1,1578.0,12.90233895]
[1673995309061,0.857,1578.1,1578.0,6.56520895]
[1673995311203,15.35320946,1578.3,1578.0,6.56520895]
[1673995311361,1.53532095,1578.2,1578.0,5.39134812]
[1673995311577,2.19483555,1578.2,1578.0,5.39134812]
[1673995312361,3.18410745,1578.2,1578.0,5.39134812]
[1673995312769,1.53532095,1578.2,1578.0,5.39134812]
[1673995313092,0.6595146,1578.2,1578.0,5.39134812]
[1673995313313,1.76001766,1578.2,1578.0,5.39134812]
[1673995313933,8.16908136,1578.3,1578.0,5.39134812]
[1673995314145,1.76001069,1578.2,1578.0,5.39134812]
[1673995314322,0.6595146,1578.2,1578.0,5.39134812]
[1673995314531,8.16908136,1578.3,1578.0,5.39134812]
[1673995314742,0.6595146,1578.2,1578.0,5.39134812]
[1673995315151,7.17980946,1578.3,1578.0,5.39134812]
[1673995315361,0.6595146,1578.2,1578.0,5.39134812]
[1673995315574,8.16908136,1578.3,1578.0,5.39134812]
[1673995316194,1.83313136,1578.3,1578.0,11.72847812]
[1673995316449,0.74785946,1578.3,1578.0,13.85311734]
[1673995324563,0.74204204,1578.3,1578.0,13.85311734]
[1673995324753,0.74204204,1578.3,1578.1,0.23]
[1673995324754,0.08252744,1578.3,1578.1,0.23]
[1673995325094,0.08252744,1578.3,1578.1,6.56656]
[1673995325306,0.74204204,1578.3,1578.1,6.56856]
[1673995325623,0.08252744,1578.3,1578.1,6.56856]
[1673995326143,0.08252744,1578.3,1578.1,12.90529]
[1673995326514,0.74204204,1578.3,1578.1,12.90529]
[1673995328870,0.08252744,1578.3,1578.1,25.6033418]
[1673995330290,0.08252744,1578.3,1578.2,3.11662407]
[1673995330501,0.08252744,1578.3,1578.2,25.35561407]
[1673995330750,0.08252744,1578.3,1578.2,25.35761407]
[1673995330923,0.08252744,1578.3,1578.2,25.35561407]
[1673995331131,0.08252744,1578.3,1578.2,28.91957542]
[1673995331805,0.08252744,1578.3,1578.2,28.92157542]
[1673995332021,0.08252744,1578.3,1578.2,28.94681207]
[1673995332841,0.08252744,1578.3,1578.2,28.94481207]
[1673995333459,0.08252744,1578.3,1578.2,22.60848207]
[1673995333652,0.08252744,1578.3,1578.2,0.25523665]
[1673995334079,0.08252744,1578.3,1578.2,0.02523665]
[1673995334418,0.08252744,1578.3,1578.2,1e-08]
[1673995335394,0.74204204,1578.3,1578.2,1e-08]
[1673995335699,0.74204204,1578.3,1578.2,0.23000001]
[1673995336013,0.08252744,1578.3,1578.2,0.23000001]
[1673995336185,0.74204204,1578.3,1578.2,0.23000001]
[1673995336403,2.12560985,1578.3,1578.1,6.34256]
[1673995336597,1.02521311,1578.3,1578.1,6.33856]
[1673995337124,3.11493754,1578.3,1578.1,6.33856]
[1673995337334,2.01448501,1578.3,1578.1,6.33856]
[1673995337886,1.75998217,1578.2,1578.1,0.002]
[1673995338078,1.96143067,1578.2,1578.0,11.9657]
[1673995338289,0.8609631,1578.2,1578.0,11.9657]
[1673995339843,7.1974231,1578.2,1578.0,11.9657]
[1673995340056,7.2934231,1578.2,1578.0,11.9657]
[1673995340267,0.72934231,1578.1,1578.0,11.9657]
[1673995341150,2.48938247,1578.1,1578.0,0.002]
[1673995341364,2.48938247,1578.1,1577.9,13.54934]
[1673995341599,1.38885691,1578.1,1577.9,13.54934]
[1673995341821,1.38885691,1578.1,1577.9,6.33934]
[1673995344451,1.38885691,1578.1,1578.0,0.67568288]
[1673995344663,2.48938965,1578.1,1578.0,0.67568288]
[1673995346710,2.49520708,1578.1,1578.0,0.67568288]
[1673995347594,8.83193708,1578.1,1578.0,0.67568288]
[1673995347806,9.25769438,1578.1,1578.0,0.67568288]
[1673995348125,9.91886618,1578.1,1578.0,0.67568288]
[1673995351019,8.92959428,1578.1,1578.0,0.67568288]
[1673995351244,22.59232618,1578.1,1578.0,0.67568288]
[1673995351644,15.26632428,1578.1,1578.0,0.67568288]
[1673995352537,8.92959428,1578.1,1578.0,0.67568288]
[1673995353805,0.83115974,1578.1,1578.0,0.67568288]